[Event "79th LOTTO Polish-ch 2022"]
[Site "Kruszwica"]
[Date "2022.05.09"]
[Round "1.1"]
[White "Wojtaszek, Radoslaw"]
[Black "Sabuk, Piotr"]
[Result "1-0"]
[ECO "D30"]
[WhiteElo "2696"]
[BlackElo "2420"]
[Annotator "TA"]
[PlyCount "79"]
[EventDate "2022.05.10"]
[EventType "k.o."]
[EventCountry "POL"]
[SourceTitle "playchess.com"]
[Source "ChessBase"]
[SourceQuality "1"]
[TimeControl "40/5400+30:1800+30"]

{[%evp 9,79,31,40,42,39,31,28,19,16,25,19,15,16,20,17,8,22,19,18,22,34,32,50,-8,52,54,54,41,40,31,27,21,29,42,40,32,56,54,45,49,48,49,58,50,58,72,160,148,151,155,398,393,392,389,384,379,426,327,301,312,394,364,422,418,431,421,472,451,451,448,438,436]} 1. d4 {[%emt 0:00:02]} d5 {[%emt 0:00:07]} 2. c4 {[%emt 0:00:04]} e6 {[%emt 0:00:06]} 3. Nf3 {[%emt 0:00:22]} Nf6 {[%emt 0:00:22]} 4. g3 {[%emt 0:00:07]} h6 {[%emt 0:00:17]} 5. Bg2 {[%emt 0:00:59]} Bd6 {[%emt 0:00:45]} 6. O-O {[%emt 0:00:13] E01: Catalan: Early deviations.} O-O {[%emt 0:00:17]} 7. Qc2 {[%emt 0:02:07]} b6 {[%emt 0:00:40]} 8. cxd5 {[%emt 0:02:46] White has an edge.} exd5 {[%emt 0:00:49]} 9. Nc3 {[%emt 0:00:06]} Bb7 {[%emt 0:01:03]} 10. Nb5 {[%emt 0:02:00]} Nc6 {[%emt 0:00:39] [#]} 11. Nxd6 $146 {[%emt 0:05:25]} ({Predecessor:} 11. Nh4 Ne7 12. a4 a6 13. Nxd6 cxd6 14. Bd2 Bc8 15. Rfc1 Ra7 16. Ra3 g5 17. Nf3 {1-0 (50) Zakhartsov,V (2486)-Odegov,A (2259) Cheliabinsk 2020}) 11... cxd6 {[%emt 0:00:13]} 12. Bf4 {[%emt 0:00:33]} Qd7 {[%emt 0:02:58]} 13. Rac1 {[%emt 0:02:46]} Rfe8 {[%emt 0:03:48]} 14. Rfe1 {[%emt 0:00:50]} Rac8 {[%emt 0:07:01][%cal Oc6d4]} 15. Qa4 {[%emt 0:00:43]} Re4 {[%emt 0:27:54]} 16. Nd2 {[%emt 0:23:51]} (16. h4 $14) 16... Re7 {[%emt 0:21:25]} ({Black should play} 16... Rxd4 $11 17. Qa3 a5) 17. Nb1 {[%emt 0:01:52][%cal Bd2b1,Bb1c3,Bc3a4,Ba4b2,Bb2d3,Bd3f4][%mdl 32]} a6 {[%emt 0:08:18]} 18. Nc3 {[%emt 0:01:29]} b5 {[%emt 0:02:51]} 19. Qd1 {[%emt 0:00:12]} Na5 {[%emt 0:01:48]} 20. b3 {[%emt 0:08:30]} b4 {[%emt 0:01:47]} 21. Na4 {[%emt 0:00:21] aiming for Rxc8+.} Rxc1 {[%emt 0:00:16]} 22. Bxc1 {[%emt 0:00:18]} Bc6 {[%emt 0:00:33]} 23. Nb2 {[%emt 0:02:17]} Bb5 {[%emt 0:00:14]} 24. Nd3 {[%emt 0:03:32]} Nc6 {[%emt 0:06:39]} 25. Nf4 {[%emt 0:02:54]} Qf5 $1 {[%emt 0:00:10]} 26. h3 {[%emt 0:00:26]} Qb1 {[%emt 0:05:01]} 27. Qd2 {[%emt 0:03:48]} ({Don't play} 27. Bxd5 Qxa2 28. Bg2 g5 29. Bxc6 Bxc6 $11) 27... Ne4 {[%emt 0:01:32]} (27... Qf5 $142) 28. Qb2 $16 {[%emt 0:00:08]} Qxb2 {[%emt 0:02:29]} 29. Bxb2 {[%emt 0:00:05]} Nc3 $2 {[%emt 0:00:13] A mistake that costs the game.} (29... Nf6 $16 30. Nxd5 Nxd5) 30. Bxc3 $18 {[%emt 0:05:36]} bxc3 {[%emt 0:00:02]} 31. a4 {[%emt 0:00:09]} Nxd4 {[%emt 0:03:05][%cal Re7e2] [#] Strongly threatening ...Rxe2.} 32. axb5 {[%emt 0:00:05] Threatens to win with b6.} axb5 {[%emt 0:01:18]} 33. Kf1 {[%emt 0:04:33]} Nxb3 {[%emt 0:01:35]} 34. Nxd5 {[%emt 0:01:16]} Nd2+ {[%emt 0:00:36]} 35. Kg1 {[%emt 0:00:04]} Ra7 {[%emt 0:00:14]} 36. Nxc3 {[%emt 0:00:19]} b4 {[%emt 0:00:10]} 37. Ne4 {[%emt 0:00:05] White is clearly winning.} Nc4 {[%emt 0:00:36]} 38. Rb1 {[%emt 0:00:43]} Ra4 {[%emt 0:00:31]} 39. e3 {[%emt 0:01:09]} f5 {[%emt 0:00:30] [#]} 40. Nf6+ $1 {[%emt 0:00:00][%mdl 512] Weighted Error Value: White=0.07 (flawless) /Black=0.23 (precise)} 1-0

[Event "79th LOTTO Polish-ch 2022"]
[Site "Kruszwica"]
[Date "2022.05.10"]
[Round "1.2"]
[White "Piorun, Kacper"]
[Black "Nasuta, Grzegorz"]
[Result "1/2-1/2"]
[ECO "A06"]
[WhiteElo "2635"]
[BlackElo "2511"]
[Annotator "TA"]
[PlyCount "125"]
[EventDate "2022.05.10"]
[EventType "k.o."]
[EventCountry "POL"]
[SourceTitle "playchess.com"]
[Source "ChessBase"]
[SourceQuality "1"]
[TimeControl "40/5400+30:1800+30"]

{[%evp 10,125,17,4,4,0,-10,-28,-25,-26,-28,-37,-32,-32,-11,-14,0,0,6,-2,11,13,15,12,17,25,20,20,25,30,20,21,32,14,22,16,24,0,0,0,0,0,5,0,5,0,0,0,0,0,0,0,0,0,5,6,8,4,30,31,33,32,42,31,39,42,42,48,77,84,109,109,109,109,125,54,54,54,137,99,193,182,168,168,168,46,46,38,36,39,35,39,47,3,4,0,2,0,0,0,4,4,6,0,0,0,0,0,0,0,0,0,5,0,0,0,0,0]} 1. Nf3 {[%emt 0:00:03]} d5 {[%emt 0:00:07]} 2. g3 {[%emt 0:00:10]} Bg4 {[%emt 0:00:05]} 3. Bg2 {[%emt 0:00:12]} e6 {[%emt 0:00:05]} 4. c4 {[%emt 0:00:45]} c6 {[%emt 0:00:06]} 5. cxd5 {[%emt 0:00:11]} exd5 {[%emt 0:00:16]} 6. d3 {[%emt 0:01:53]} Nf6 {[%emt 0:00:45] A11: English Opening: 1...c6.} 7. Qb3 {[%emt 0:06:24] [#]} Nbd7 $146 {[%emt 0:09:23]} ({Predecessor:} 7... Qb6 8. Qc2 Nbd7 9. O-O Bd6 10. Be3 Qd8 11. Nc3 O-O 12. a3 Re8 13. b4 a5 14. Qb3 axb4 15. axb4 {½-½ (32) Roos,D (2354)-Dittmar,P (2344) Wittelsheim 2013}) 8. h3 {[%emt 0:01:18]} (8. Qxb7 $2 Nc5 9. Qxc6+ Bd7 10. Qxa8 Qxa8 $19) 8... Nc5 {[%emt 0:06:19] Black has an edge.} 9. Qc2 {[%emt 0:00:14]} Bxf3 {[%emt 0:13:36]} 10. Bxf3 {[%emt 0:00:05]} Ne6 {[%emt 0:00:05]} 11. Bg2 {[%emt 0:01:22]} Bc5 {[%emt 0:02:31]} 12. Nd2 {[%emt 0:08:34]} O-O {[%emt 0:03:16]} 13. O-O {[%emt 0:00:51]} Re8 {[%emt 0:02:19]} 14. Nf3 {[%emt 0:02:12]} Qb6 {[%emt 0:11:20]} 15. e3 {[%emt 0:03:47]} a5 {[%emt 0:01:16]} 16. Rb1 {[%emt 0:03:46]} a4 {[%emt 0:04:29]} 17. Bd2 {[%emt 0:10:18][%cal Bc1d2,Bd2e1,Be1c3][%mdl 32]} Qa7 {[%emt 0:00:40]} 18. Rfc1 {[%emt 0:04:13]} Nd7 {[%emt 0:06:09]} 19. Be1 {[%emt 0:09:16]} Bd6 {[%emt 0:04:13]} 20. Bc3 {[%emt 0:04:45]} Bc5 {[%emt 0:01:15]} 21. e4 {[%emt 0:06:17]} dxe4 {[%emt 0:02:14]} 22. dxe4 {[%emt 0:00:02]} Ndf8 {[%emt 0:02:42]} 23. e5 {[%emt 0:02:56]} Nd4 {[%emt 0:04:54]} 24. Bxd4 {[%emt 0:00:40]} Bxd4 {[%emt 0:00:01]} 25. Re1 {[%emt 0:00:07]} (25. Nxd4 Qxd4 26. b4 Rxe5 $15) 25... Bc5 {[%emt 0:13:22]} 26. Bf1 {[%emt 0:10:12]} Ne6 {[%emt 0:04:25]} 27. Bc4 {[%emt 0:00:11]} Nd4 {[%emt 0:04:19]} 28. Nxd4 {[%emt 0:03:36]} Bxd4 {[%emt 0:00:01]} 29. Rbd1 {[%emt 0:06:43][%cal Oc4f7]} (29. Qf5 b5 30. Bd3 g6 $17) 29... b5 {[%emt 0:01:30]} (29... Rxe5 30. Rxe5 Bxe5 31. Rd7 $16) 30. Bd3 {[%emt 0:05:42][%csl LRc6,LRh7]} g6 {[%emt 0:00:01]} 31. Kg2 {[%emt 0:00:48]} Bxe5 {[%emt 0:02:43]} 32. Qxc6 {[%emt 0:00:20]} Rec8 {[%emt 0:00:37]} 33. Qf3 {[%emt 0:03:21]} Bxb2 {[%emt 0:00:24]} (33... Rc5 $5 {[%cal Re5b2]}) 34. Bxb5 Rd8 {Inhibits Rd7.} 35. h4 {[%emt 0:03:17][%cal Bh3h4,Bh4h5,Bh5h6][%mdl 32]} a3 {[%emt 0:01:40]} 36. h5 {[%emt 0:01:08]} Rab8 {[%emt 0:00:47] Hoping for ...Rxd1.} 37. Bc4 $40 {[%emt 0:01:33][%mdl 128] White attacks.} Rxd1 {[%emt 0:00:25]} 38. Rxd1 {[%emt 0:00:10] Black must now prevent hxg6.} Qe7 {[%emt 0:00:26]} 39. Qg4 {[%emt 0:01:42]} Qf6 {[%emt 0:00:31]} 40. Rd7 {[%emt 0:00:00]} Rf8 {[%emt 0:00:00]} 41. h6 $1 {[%emt 0:04:05][%cal Od7f7] White is more active.} Kh8 {[%emt 0:06:01]} 42. f4 {[%emt 0:04:22]} (42. Qe4 $16) 42... Qc6+ $14 {[%emt 0:15:35]} 43. Bd5 {[%emt 0:00:05]} Qc5 {[%emt 0:07:26]} ({Black should try} 43... Qc2+ $14 44. Kh3 Bd4) 44. Kh3 {[%emt 0:04:00]} Qc1 {[%emt 0:01:23] [#]} (44... Qc8 $16 {keeps fighting.} 45. Bxf7 (45. Rxf7 Qxg4+ 46. Kxg4 Rxf7 $16) 45... Rd8 46. Rxd8+ Qxd8) 45. Qe2 $1 $18 {[%emt 0:01:35] Intending Qe7 and mate.} ({Don't blunder} 45. Rxf7 $2 Rxf7 46. Qe6 Rf8 $19) 45... Qc5 {[%emt 0:00:37]} 46. Bxf7 {[%emt 0:06:26]} ({Wrong is} 46. Rxf7 $2 Rxf7 47. Bxf7 Qf5+ 48. Qg4 Qxf7 $19) 46... Qc6 {[%emt 0:00:01] [#]} 47. Rd1 {[%emt 0:01:51]} Qf6 $1 $14 {[%emt 0:00:19]} 48. Bb3 {[%emt 0:02:36]} g5 {[%emt 0:00:07]} 49. Qe6 {[%emt 0:00:42][%cal Of4f5] Strongly threatening f5!} gxf4 {[%emt 0:00:42]} 50. Qxf6+ {[%emt 0:00:17]} Bxf6 {[%emt 0:00:02]} 51. gxf4 {[%emt 0:00:06][%mdl 4096] Endgame Be6 is the strong threat. KRB-KRB} (51. Rd7 $5 {[%cal Rg3f4]}) 51... Bg5 $1 {[%emt 0:00:23] The position is equal.} 52. Rd6 {[%emt 0:02:17]} Rxf4 {[%emt 0:01:37]} 53. Kg3 {[%emt 0:00:39]} Rh4 {[%emt 0:00:50]} 54. Rd5 {[%emt 0:00:07]} Rh1 {[%emt 0:00:22]} 55. Kg2 {[%emt 0:00:52]} Rh4 {[%emt 0:00:14]} 56. Kg3 {[%emt 0:04:26]} Rh1 {[%emt 0:00:06]} 57. Ra5 {[%emt 0:00:13] White threatens Ra8+ and mate.} Bxh6 {[%emt 0:00:57]} 58. Rxa3 {[%emt 0:00:02]} Bd2 {[%emt 0:01:49]} 59. Bd5 {[%emt 0:00:33]} Rh5 {[%emt 0:00:36]} 60. Rd3 {[%emt 0:00:12]} Ba5 {[%emt 0:00:21]} 61. a4 {[%emt 0:00:12]} Rg5+ {[%emt 0:00:22]} 62. Kh3 {[%emt 0:00:19]} h6 {[%emt 0:00:23]} 63. Bf3 {[%emt 0:00:14] Weighted Error Value: White=0.08 (flawless) /Black=0.06 (flawless)} 1/2-1/2

[Event "79th LOTTO Polish-ch 2022"]
[Site "Kruszwica"]
[Date "2022.05.10"]
[Round "1.2"]
[White "Bartel, Mateusz"]
[Black "Warakomski, Tomasz"]
[Result "1/2-1/2"]
[ECO "B40"]
[WhiteElo "2619"]
[BlackElo "2534"]
[Annotator "TA"]
[PlyCount "98"]
[EventDate "2022.05.10"]
[EventType "k.o."]
[EventCountry "POL"]
[SourceTitle "playchess.com"]
[Source "ChessBase"]
[SourceQuality "1"]
[TimeControl "40/5400+30:1800+30"]

{[%evp 9,98,0,0,8,10,4,11,0,0,0,-2,-31,-30,-34,-51,-85,-35,-22,-24,-51,-27,-65,22,-32,0,0,8,19,16,-24,-26,-120,-109,-114,-112,-95,-81,-52,-50,-51,-45,-34,-27,-24,-21,-21,-31,-25,0,-26,0,-21,0,0,6,18,11,15,14,20,43,0,0,-365,-350,-333,-351,-335,-8,-8,0,0,0,0,0,0,0,-8,0,0,0,0,0,0,0,0,0,0,0,0,0]} 1. e4 {[%emt 0:00:04][%cal Be2e4,Be4e5][%mdl 32]} c5 {[%emt 0:00:10]} 2. Nf3 {[%emt 0:00:04]} e6 {[%emt 0:03:23]} 3. c3 {[%emt 0:00:20]} Nf6 {[%emt 0:06:22]} 4. Bd3 {[%emt 0:00:18]} d5 {[%emt 0:02:08][%cal Bd7d5,Bd5d4][%mdl 32]} 5. e5 {[%emt 0:01:01]} Nfd7 {[%emt 0:00:20]} 6. Bc2 {[%emt 0:00:02] B40: Sicilian: 2...e6, Unusual lines.} d4 {[%emt 0:00:39]} 7. O-O {[%emt 0:05:14]} Nc6 {[%emt 0:00:47]} 8. Ba4 {[%emt 0:03:25]} g5 {[%emt 0:13:41][%cal Bg7g5,Bg5g4][%mdl 32]} 9. Qe2 {[%emt 0:15:56]} Bg7 {[%emt 0:10:15] [#]} 10. Qe4 $146 {[%emt 0:17:57]} ({Predecessor:} 10. Bxc6 bxc6 11. h3 h5 12. Qe4 g4 13. hxg4 hxg4 14. Qxg4 Nxe5 15. Nxe5 Bxe5 16. f4 {½-½ (27) Ozen,D (2417)-Rahul,S (2430) Montebelluna 2019}) 10... h5 $1 {[%emt 0:00:22] And now ...g4 would win.} 11. cxd4 {[%emt 0:02:08]} g4 {[%emt 0:01:43]} 12. Ne1 {[%emt 0:00:20]} cxd4 {[%emt 0:18:44]} ({Black should play} 12... Nxd4 $17 {...Rb8 is the strong threat.} 13. Nc3 O-O) 13. f4 {[%emt 0:01:56]} O-O {[%emt 0:10:23]} 14. Nd3 {[%emt 0:06:59] Prevents Nc5.} f5 {[%emt 0:06:46]} 15. Qe2 {[%emt 0:00:02]} Qa5 {[%emt 0:00:20]} (15... Rf7 $15) 16. Bc2 {[%emt 0:00:46]} (16. Bb3 $1 $11) 16... Rd8 {[%emt 0:04:47]} 17. Na3 {[%emt 0:01:21]} b5 {[%emt 0:06:03]} 18. b4 {[%emt 0:06:01]} Nxb4 {[%emt 0:00:16]} 19. Nxb4 {[%emt 0:00:32]} Qxb4 {[%emt 0:00:05]} 20. Bd3 {[%emt 0:06:20]} (20. Qxb5 $11 Rb8 21. Qxb4 Rxb4 22. Bb3) 20... a6 $1 $17 {[%emt 0:04:25] Threatens to win with ...Bb7.} 21. Nc2 {[%emt 0:00:07]} Qa4 {[%emt 0:00:04] aiming for ...Bb7.} 22. Ba3 {[%emt 0:04:49]} Bf8 {[%emt 0:00:06] Prevents Be7.} 23. Bxf8 {[%emt 0:00:26]} Nxf8 {[%emt 0:00:24]} 24. Qf2 {[%emt 0:03:29]} Ng6 {[%emt 0:00:06]} 25. Rfb1 {[%emt 0:00:02]} Bb7 {[%emt 0:01:15]} 26. Rb4 {[%emt 0:00:14]} Qa5 {[%emt 0:00:02]} 27. a4 {[%emt 0:05:41][%cal Ra4b5]} Qc7 {[%emt 0:00:05]} 28. Rxd4 {[%emt 0:00:59]} bxa4 {[%emt 0:02:52]} 29. Raxa4 {[%emt 0:01:40]} Rxd4 {[%emt 0:01:57]} 30. Nxd4 {[%emt 0:05:41]} Qd7 {[%emt 0:00:04]} 31. Rb4 {[%emt 0:00:46]} Rd8 {[%emt 0:05:02] [#]} 32. Bc4 $1 {[%emt 0:00:25][%csl LRe6,LRf5]} Bd5 {[%emt 0:00:25]} 33. Bxa6 {[%emt 0:00:37]} Qc7 {[%emt 0:00:27] Against Rb6} 34. Bf1 {[%emt 0:00:47]} Qc1 {[%emt 0:00:30]} 35. Nxf5 {[%emt 0:02:02] Strongly threatening Ng3.} Bxg2 {[%emt 0:01:46][%mdl 64] Deflection} (35... exf5 36. Qb6 Kg7 37. Qf6+ (37. Qxd8 Qc5+ 38. d4 Qxb4 $14) 37... Kh6 38. Qg5+ (38. Qxd8 Qc5+ 39. d4 Qxb4 $11) 38... Kg7 39. Qf6+ (39. Qxd8 Qc5+ 40. d4 Qxb4 $11) 39... Kh6 40. Qg5+ (40. Qxd8 Qc5+ 41. d4 Qxb4 $11) 40... Kg7 41. Qxd8 (41. Qf6+ Kh6 $11)) (35... exf5 $5 36. Qb6 Kg7 $11) 36. Qxg2 {[%emt 0:03:57][%mdl 8192]} (36. Kxg2 $11 {and White stays safe.} Rxd2 37. Rb8+ Nf8 38. Ne7+ Kf7 39. Be2 $1) 36... Qc5+ $19 {[%emt 0:00:43]} 37. d4 {[%emt 0:00:26]} Qxb4 {[%emt 0:00:06]} 38. Qc6 {[%emt 0:00:02] [#]} Nxf4 {[%emt 0:00:57]} ({Better is} 38... Nf8 $1 $19 39. Qc4 (39. Qc7 $2 Rd7 $19) (39. Nh6+ $2 Kh7 $19) 39... Qd2) 39. Qc7 $132 {[%emt 0:00:19][%csl Gf5][%cal Rc7g7][%mdl 2048] White is not holding back. The position is equal.} Qf8 {[%emt 0:00:41] Inhibits Qg7+.} 40. Nh6+ {[%emt 0:00:00]} Qxh6 {[%emt 0:00:00]} 41. Qxd8+ {[%emt 0:00:52][%mdl 4096] Endgame KQB-KQN} Qf8 {[%emt 0:02:54]} 42. Qg5+ {[%emt 0:00:08]} Kh7 {[%emt 0:01:33]} 43. h3 {[%emt 0:04:17]} gxh3 {[%emt 0:02:37]} 44. Kh2 {[%emt 0:00:06]} Qh6 {[%emt 0:00:59]} 45. Qe7+ {[%emt 0:03:07]} Qg7 {[%emt 0:00:28]} 46. Qh4 {[%emt 0:02:16]} (46. Qf6 Qxf6 47. exf6 h4 $11) 46... Qg4 {[%emt 0:04:28]} 47. Qe7+ {[%emt 0:00:24]} Qg7 {[%emt 0:00:11]} 48. Qh4 {[%emt 0:00:04]} ({Reject} 48. Qf6 Qxf6 49. exf6 h4 $15) 48... Qg4 {[%emt 0:00:04]} 49. Qe7+ {[%emt 0:00:04]} Qg7 {[%emt 0:00:05] Weighted Error Value: White=0.26 (precise) /Black=0.23 (precise)} 1/2-1/2

[Event "79th LOTTO Polish-ch 2022"]
[Site "Kruszwica"]
[Date "2022.05.09"]
[Round "1.2"]
[White "Gajewski, Grzegorz"]
[Black "Janik, Igor"]
[Result "1-0"]
[ECO "B12"]
[WhiteElo "2589"]
[BlackElo "2525"]
[Annotator "TA"]
[PlyCount "73"]
[EventDate "2022.05.10"]
[EventType "k.o."]
[EventCountry "POL"]
[SourceTitle "playchess.com"]
[Source "ChessBase"]
[SourceQuality "1"]
[TimeControl "40/5400+30:1800+30"]

{[%evp 10,73,0,0,15,10,16,14,19,7,11,6,6,9,13,6,8,13,16,-18,-21,-24,-9,-35,-35,-73,-71,-98,-91,-89,-51,-75,-44,-63,-70,-105,-38,-27,-27,-73,-64,-120,-118,-127,-66,-112,-73,-95,-64,-45,0,0,0,0,0,0,0,-6,-7,-8,0,0,0,0,2193,1626]} 1. e4 {[%emt 0:00:03]} c6 {[%emt 0:00:07]} 2. d4 {[%emt 0:00:09]} d5 {[%emt 0:00:06]} 3. e5 {[%emt 0:00:05]} Bf5 {[%emt 0:01:03]} 4. c4 {[%emt 0:00:18]} e6 {[%emt 0:01:25]} 5. Nc3 {[%emt 0:00:06]} Ne7 {[%emt 0:05:42]} 6. a3 {[%emt 0:00:12]} dxc4 {[%emt 0:01:23] B12: Caro-Kann: Advance Variation.} 7. Bxc4 {[%emt 0:00:12]} Nd7 {[%emt 0:02:17]} 8. Nge2 {[%emt 0:00:12]} Nb6 {[%emt 0:00:17] The position is equal.} 9. Ba2 {[%emt 0:00:10]} h6 {[%emt 0:04:58]} 10. O-O {[%emt 0:00:09] [#]} Bh7 $146 {[%emt 0:01:10]} ({Predecessor:} 10... Qd7 11. Ng3 Rd8 12. Be3 Bh7 13. Qe2 Ned5 14. Nce4 Be7 15. Qg4 Bg6 16. Nh5 O-O {½-½ (32) Ochkoos,J (2360)-Boross Harmer,P (2040) Toronto 1997}) 11. Ng3 {[%emt 0:05:46]} Qd7 {[%emt 0:13:23]} 12. Be3 {[%emt 0:05:12]} Nf5 {[%emt 0:00:43]} 13. Nxf5 {[%emt 0:03:41]} Bxf5 {[%emt 0:00:11]} 14. g4 {[%emt 0:00:34]} Bh7 {[%emt 0:11:08]} 15. f4 {[%emt 0:06:13][%cal Of4f5]} O-O-O {[%emt 0:06:34][%cal Oh6h5]} 16. Qf3 {[%emt 0:03:14]} h5 {[%emt 0:11:05] ...hxg4 is the strong threat.} 17. h3 {[%emt 0:01:47]} hxg4 {[%emt 0:00:09]} 18. hxg4 {[%emt 0:00:02]} Bd3 {[%emt 0:01:05]} 19. Rfc1 {[%emt 0:20:29]} Kb8 {[%emt 0:08:08]} 20. Bf2 {[%emt 0:10:27]} Bc4 {[%emt 0:00:35]} 21. Bxc4 {[%emt 0:06:50]} Nxc4 {[%emt 0:00:09]} 22. Ne4 {[%emt 0:02:08]} Nb6 {[%emt 0:02:50]} ({Black should play} 22... Nxb2 $17 23. Qb3 Qd5 $1 24. Qxd5 Rxd5) 23. Kg2 $1 $15 {[%emt 0:00:21]} Be7 {[%emt 0:03:09]} 24. f5 {[%emt 0:03:40] Active counter play!} (24. Rh1 $11) 24... Bh4 {[%emt 0:05:35] aiming for ...Bxf2.} 25. Bg1 {[%emt 0:02:44]} (25. Nc5 $15 Qe7 26. Rh1 Bxf2 27. Qxf2) 25... Nd5 {[%emt 0:02:10]} 26. Rf1 {[%emt 0:04:19]} Be7 {[%emt 0:03:14]} (26... Qc7 $17 {Threatens to win with ...exf5.} 27. Rad1 exf5 28. gxf5 Ka8) 27. Bh2 {[%emt 0:02:15]} (27. Bf2 $15) 27... Ka8 {[%emt 0:04:25]} 28. f6 {[%emt 0:02:43]} gxf6 {[%emt 0:01:51]} 29. exf6 {[%emt 0:00:02]} Nxf6 {[%emt 0:02:03]} 30. Nxf6 {[%emt 0:01:03]} Qxd4 {[%emt 0:00:01]} 31. Rad1 {[%emt 0:02:42]} Qxb2+ {[%emt 0:01:59]} 32. Rf2 {[%emt 0:00:02] Really sharp!} Rxh2+ {[%emt 0:03:29]} 33. Kxh2 {[%emt 0:00:28]} Qe5+ {[%emt 0:00:05]} 34. Kh3 {[%emt 0:03:16] And now Rxd8+ would win.} Bxf6 {[%emt 0:03:15]} 35. Rxd8+ {[%emt 0:00:40]} Bxd8 {[%emt 0:00:02]} 36. Qxf7 {[%emt 0:00:14]} Bc7 $2 {[%emt 0:00:57][%mdl 8192] [#]} (36... a6 $11) 37. Qxc7 $3 {[%emt 0:01:03][%mdl 512] Weighted Error Value: White=0.12 (very precise) /Black=0.14 (very precise)} 1-0

[Event "79th LOTTO Polish-ch 2022"]
[Site "Kruszwica"]
[Date "2022.05.10"]
[Round "1.2"]
[White "Tomczak, Jacek"]
[Black "Licznerski, Lukasz"]
[Result "1-0"]
[ECO "D10"]
[WhiteElo "2584"]
[BlackElo "2439"]
[Annotator "TA"]
[PlyCount "91"]
[EventDate "2022.05.10"]
[EventType "k.o."]
[EventCountry "POL"]
[SourceTitle "playchess.com"]
[Source "ChessBase"]
[SourceQuality "1"]
[TimeControl "40/5400+30:1800+30"]

{[%evp 9,91,20,20,18,25,26,19,22,27,10,16,16,26,25,12,13,8,27,44,13,22,6,20,16,65,70,86,26,31,28,59,28,35,30,26,19,42,34,35,44,30,25,22,24,49,8,10,14,48,51,52,39,76,50,130,140,123,120,179,178,166,173,180,173,164,166,149,167,323,350,338,290,304,288,7336,12797,6099,6195,5322,5281,2936,2858,29978,677]} 1. d4 {[%emt 0:00:04]} d5 {[%emt 0:00:53][%cal Bd7d5,Bd5c4][%mdl 32]} 2. c4 {[%emt 0:00:21]} c6 {[%emt 0:02:06]} 3. Nc3 {[%emt 0:00:13][%cal Bb1c3,Bc3e4,Be4d2][%mdl 32]} dxc4 {[%emt 0:00:52]} 4. e3 {[%emt 0:01:03]} b5 {[%emt 0:00:30]} 5. a4 {[%emt 0:00:33]} b4 {[%emt 0:00:02]} 6. Ne4 {[%emt 0:00:12] D10: Slav Defence: 3 cxd5 (without early Nf3) and 3 Nc3.} Qd5 {[%emt 0:00:47]} 7. Nd2 {[%emt 0:06:17]} c3 {[%emt 0:00:27]} 8. bxc3 {[%emt 0:00:15] The position is equal.} bxc3 {[%emt 0:00:03]} 9. Nb1 {[%emt 0:00:24]} Qa5 {[%emt 0:00:08]} 10. Qc2 {[%emt 0:01:36]} Na6 {[%emt 0:00:38]} 11. Qxc3 {[%emt 0:07:30]} (11. Ba3 {with more complications.} e5 12. Nf3 Bxa3 13. Nxa3 exd4 14. Nc4) 11... Nb4 {[%emt 0:01:03]} 12. Bd2 {[%emt 0:03:19]} e6 {[%emt 0:00:29]} 13. Nf3 {[%emt 0:20:01]} Nf6 {[%emt 0:01:12]} 14. Ne5 $5 {[%emt 0:00:53][%mdl 4] A promising side line.} Ne4 {[%emt 0:06:08]} 15. Qc1 {[%emt 0:01:17]} Bb7 {[%emt 0:01:41]} 16. Be2 {[%emt 0:03:08]} Be7 {[%emt 0:08:35]} (16... f6 $11 {should be considered.} 17. Nc4 Qg5) 17. O-O $14 {[%emt 0:00:26]} O-O {[%emt 0:06:33] [#]} 18. f3 $146 {[%emt 0:19:20]} (18. Bxb4 $16 Qxb4 19. f3) ({Predecessor:} 18. Bxb4 Qxb4 19. Bf3 Ng5 20. Nxc6 Nxf3+ 21. gxf3 Qd6 22. Nxe7+ Qxe7 23. Nd2 Qf6 24. Qc7 Bxf3 25. Nxf3 Qxf3 {1-0 (60) Can,F (1781)-Akbas,O (1451) Konya 2018}) 18... Nxd2 $11 {[%emt 0:20:22]} 19. Nxd2 {[%emt 0:00:09]} Ba6 {[%emt 0:12:44]} 20. Bxa6 {[%emt 0:11:31]} (20. Nb3 $5 {[%cal Rb3a5]} Qb6 21. Bxa6 Qxa6 22. Nc5 $14) 20... Qxa6 {[%emt 0:00:07]} 21. Ne4 {[%emt 0:00:18] Prevents c5.} Rfc8 {[%emt 0:14:49][%cal Oc6c5]} 22. Nc5 {[%emt 0:03:16] Pair of Knights!} Qa5 {[%emt 0:00:39]} 23. Qc3 {[%emt 0:02:01]} Bxc5 {[%emt 0:02:26]} 24. dxc5 {[%emt 0:00:07]} (24. Qxc5 Qxc5 25. dxc5 Nc2 $11) 24... Qc7 $1 {[%emt 0:00:12]} 25. e4 {[%emt 0:01:38] Prevents Nd5.} a5 {[%emt 0:01:25]} 26. Nc4 {[%emt 0:01:23] [#] Strongly threatening Nb6.} Rd8 {[%emt 0:00:37]} 27. Nd6 {[%emt 0:00:52]} Qa7 {[%emt 0:02:12] And now ...Rxd6 would win.} 28. Rfd1 {[%emt 0:04:33]} Nd5 {[%emt 0:00:14]} 29. Qd4 {[%emt 0:00:20]} e5 {[%emt 0:01:01]} 30. Qf2 {[%emt 0:00:19]} Nf4 {[%emt 0:00:19]} 31. Rab1 {[%emt 0:04:30]} Ne2+ {[%emt 0:08:42] Black is now going downhill.} 32. Qxe2 $16 {[%emt 0:00:05]} Rxd6 {[%emt 0:00:00]} 33. Rb6 {[%emt 0:00:46]} Rad8 {[%emt 0:06:43]} 34. Rxd6 $18 {[%emt 0:02:07]} Rxd6 {[%emt 0:00:01][%mdl 4096] Endgame KQR-KQR} 35. Qa6 {[%emt 0:01:44] [#] White wants to mate with Qc8+.} (35. cxd6 $6 Qxb6+ 36. Kf1 Qd4 $11) 35... Rd1+ {[%emt 0:01:37]} 36. Kf2 {[%emt 0:00:02]} Qe7 {[%emt 0:00:44] aiming for ...Qh4+.} (36... Rd2+ $2 37. Ke3 Qe7 38. Kxd2 $18) 37. Rb8+ $40 {[%emt 0:00:44][%mdl 128] White is out for blood.} ({And not} 37. Qxa5 h5 38. Rb2 (38. Rxc6 $2 Qh4+ 39. Ke2 Rg1 $19) (38. Qa8+ $2 Kh7 $19) 38... Rh1 $11) 37... Rd8 {[%emt 0:00:03]} 38. Qb6 {[%emt 0:00:22] Active counter play!} Rf8 {[%emt 0:01:53]} (38... Qh4+ 39. Ke2 Rf8 40. Rxf8+ Kxf8 41. Qb8+ Ke7 42. Qxe5+ Kf8 43. Qb8+ Ke7 44. Qd6+ Ke8 45. Qxc6+ Kf8 46. Qc8+ Ke7 47. Qc7+ Ke8 48. Qc6+ Kf8 49. Qc8+ Ke7 50. Qc7+ Ke8 51. Qc6+ $18) (38... Rxb8 39. Qxb8+ Qf8 40. Qxe5 Qc8) 39. Rxf8+ {[%emt 0:00:10]} Kxf8 {[%emt 0:00:08]} 40. Qxc6 {[%emt 0:00:00] Black must now prevent Qa8+. KQ-KQ} Qh4+ {[%emt 0:00:00]} 41. Kf1 {[%emt 0:04:32]} Qxh2 $2 {[%emt 0:05:13]} (41... Qd8 42. Qd5 Qxd5 43. exd5 Ke7) 42. Qd6+ {[%emt 0:02:39]} Ke8 {[%emt 0:00:13]} 43. c6 {[%emt 0:00:23]} Qh1+ {[%emt 0:00:10]} 44. Kf2 {[%emt 0:00:06] Threatening mate with Qd7+.} Qh4+ {[%emt 0:00:08]} 45. Ke2 {[%emt 0:00:15] White threatens c7 and mate.} Qg5 {[%emt 0:02:02]} 46. g4 {[%emt 0:02:00] Weighted Error Value: White=0.07 (flawless) /Black=0.40} (46. Qd7+ $142 Kf8 47. Qc8+ Ke7 48. g4 f6 49. Qd7+ Kf8 50. c7 Qc1 51. c8=Q+ Qxc8 52. Qxc8+ Kf7 53. Qd7+ Kf8 54. Kd3) 1-0